{"text_format":"1","workbook":"xlsx","n_sheets":3,"sheets":["ISTRUZIONI","Aut Sism","Dep Sism"],"not_rendered":{"charts":0,"images":7,"macros":0,"external_links":0,"defined_names":3,"comments":2,"pivot_tables":0},"unopened":[],"bounds":{"document_bytes":16777216,"sheet_cells":100000,"rows_first":2000,"rows_last":500,"rows_between":2000,"halvings":0,"cell_chars":16384,"cell_head_chars":4096},"cells_cut":0,"cells_raw":0,"read":"whole","date_system":"1900"}

{"sheet":"ISTRUZIONI","index":0,"n_rows":24,"n_cols":5,"rows_kept":24,"cut":false,"hidden":false,"merged":[[3,3,3,5]]}
[]
[]
[]
[null,null,null,"ISTRUZIONI"]
[]
[]
[null,null,null,null,"Ai fini dell’applicazione del foglio di calcolo elettronico, nell’intervento principale si intendono compresi:\n- modesti interventi locali funzionalmente connessi all’intervento principale;\n- eventuali pertinenze, come definite nell’Allegato II alla d.G.R. 922/2017 (“Opera edilizia legata da un rapporto di strumentalità e complementarietà rispetto alla costruzione principale, non utilizzabile autonomamente e di dimensioni modeste o comunque rapportate al carattere di accessorietà”), che non comportino la realizzazione di un volume superiore al 20% del volume dell’edificio principale e rientrino nei limiti dimensionali definiti per gli interventi privi di rilevanza nei riguardi della pubblica incolumità (d.G.R. 2272/2016)"]
[]
[null,null,null,null,"Il rimborso è dovuto anche per gli interventi che costituiscono attività di edilizia libera ai sensi dell’art. 6 del d.P.R. 380/2001 e dell'art. 7 della l.r. 15/2013 , se soggetti ad autorizzazione sismica o al deposito del progetto esecutivo delle strutture."]
[]
[null,null,null,null,"Il volume da inserire nel foglio di calcolo è calcolato come da Allegato II \"Definizioni Tecniche Uniformi DTU\" all'atto regionale di coordinamento tecnico per la semplificazione e l'uniformazione in materia edilizia, ai sensi degli artt. 2-bis e 12 della l.r. 15/2013 approvato con d.G.R. 922/2017:\n- (26) volume totale o volumetria complessiva: volume della costruzione costituito dalla somma della superficie totale di ciascun piano per la relativa altezza lorda;\n- (16) superficie totale: somma delle superfici di tutti i piani fuori terra, seminterrati e interrati nel profilo perimetrale esterno dell'edificio;\n- (34) altezza lorda: differenza fra la quota del pavimento di ciascun piano e la quota del pavimento del piano sovrastante; per l'ultimo piano dell'edificio si misura dal pavimento fino all'intradosso del soffito o della copertura; qualora la copertura sia a più falde inclinate, il calcolo si effettua come per l'altezza virtuale."]
[]
[null,null,null,null,"Nel caso di un’unica pratica sismica caratterizzata da una pluralità di Unità Strutturali (*) differenti tra loro è dovuta la corresponsione del rimborso forfettario per ciascuna delle U.S. facenti parte della costruzione, in quanto le stesse richiedono distinte istruttorie tecniche. Viceversa, in presenza di una pluralità di strutture tra loro identiche, il rimborso è dovuto per una sola volta. Nel foglio di calcolo, è possibile inserire sino a 5 U.S. differenti tra loro."]
[]
[null,null,null,null,"Nel caso di VARIANTE SOSTANZIALE ai sensi della d.G.R. 2272/2016, compilare solamente il rigo [E.1]"]
[]
[null,null,null,null,"IN TUTTI GLI ALTRI CASI, ricordarsi di compilare sempre il rigo [H.1]"]
[]
[null,null,null,null,"Il valore da inserire alla voce \"Rimborso Forfettario\" nella maschera di PagoPA è indicato nella casella in VERDE"]
[]
[null,null,null,null,"è AL TERMINE DELLA COMPILAZIONE, salvare il file in formato PDF, firmarlo digitalmente dal Committente (o da suo Procuratore) e allegarlo alla pratica sismica in corrispondenza dell'apposita voce"]
[]
[]
[null,null,null,null,"(*) Si intende per \"Unità Strutturale\" (U.S.) una costruzione con continuità da cielo a terra per quanto riguarda il flusso dei carichi verticali e, di norma, delimitata o da spazi aperti, o da giunti strutturali, o da edifici contigui costruiti, ad esempio, con tipologie costruttive e strutturali diverse, o con materiali diversi, oppure in epoche diverse (Appendice 1 alla d.G.R. 1879/2011 e par. 8.7.1 delle NTC 2018)"]

{"sheet":"Aut Sism","index":1,"n_rows":97,"n_cols":17,"rows_kept":97,"cut":false,"hidden":false,"merged":[[86,7,86,8],[86,2,86,6],[1,1,1,11],[16,4,24,4],[36,4,44,4],[46,4,54,4],[7,6,7,10],[9,6,9,10],[11,6,11,10],[13,6,13,10],[15,4,15,10],[17,6,17,10],[19,6,19,10],[21,6,21,10],[23,6,23,10],[25,4,25,10],[6,2,32,2],[6,4,14,4],[36,2,62,2],[31,4,31,10],[26,4,26,6],[28,4,28,6],[30,4,30,6],[32,4,32,6],[56,4,56,6],[58,4,58,6],[60,4,60,6],[27,4,27,10],[29,4,29,10],[95,2,95,10],[96,2,96,10],[62,4,62,6],[78,4,78,6],[80,4,80,6],[82,4,82,6],[66,4,66,6],[68,4,68,6],[70,4,70,6],[72,4,72,6],[76,4,76,6],[94,2,94,10],[66,2,72,2],[76,2,82,2],[90,2,90,7],[93,2,93,10]]}
[]
[null,"Allegato RF/Autorizzazione Sismica - AUTOCALCOLO DEL RIMBORSO FORFETTARIO PER SPESE ISTRUTTORIE DI PRATICHE SISMICHE (d.G.R. 1934/2018)"]
[]
[null,null,"uso",null,"intervento",null,"volume [mc]","importo","U.S.",null,"totale",null,null,null,null,null,"SI"]
[null,null,null,null,null,null,null,null,null,null,null,null,null,null,null,null,"NO"]
[]
[null,null,"Ambienti ad uso residenziale\nCat. A, Tab. 3.1.II, NTC 2018\n\nUffici\nCat. B, Tab. 3.1.II, NTC 2018\n\nAmbienti suscettibili di affollamento\nCat. C, Tab. 3.1.II, NTC 2018\n\nRimesse e aree per traffico di veicoli a servizio di ambienti ad uso residenziale, uffici e ambienti suscettibili di affollamento\nCategorie F e G, Tab. 3.1.II, NTC 2018\n\nAmbienti con altri usi",null,"[A.1] nuova costruzione",null,null,{"$f":"IF(G7=0,0,IF($G7<=500,360,IF(AND($G7>500,$G7<=1500),480,IF(AND($G7>1500,$G7<=3000),600,IF(AND($G7>3000,$G7<=5000),800,1000)))))","v":0},null,null,{"$f":"IF(I7=0,0,PRODUCT(H7,I7))","v":0}]
[]
[null,null,null,null,null,null,null,{"$f":"IF(G9=0,0,IF($G9<=500,360,IF(AND($G9>500,$G9<=1500),480,IF(AND($G9>1500,$G9<=3000),600,IF(AND($G9>3000,$G9<=5000),800,1000)))))","v":0},null,null,0]
[]
[null,null,null,null,null,null,null,0,null,null,0]
[]
[null,null,null,null,null,null,null,0,null,null,0]
[]
[null,null,null,null,null,null,null,0,null,null,0]
[]
[null,null,null,null,"[A.2] adeguamento per sopraelevazione - lett. a), par. 8.4.3, NTC 2018 (1)\n\n[A.2] adeguamento per ampliamento - lett. b), par. 8.4.3, NTC 2018 (1)",null,null,{"$f":"IF(G17=0,0,IF($G17<=500,360,IF(AND($G17>500,$G17<=1500),480,IF(AND($G17>1500,$G17<=3000),600,IF(AND($G17>3000,$G17<=5000),800,1000)))))","v":0},null,null,0]
[]
[null,null,null,null,null,null,null,0,null,null,0]
[]
[null,null,null,null,null,null,null,0,null,null,0]
[]
[null,null,null,null,null,null,null,0,null,null,0]
[]
[null,null,null,null,null,null,null,0,null,null,0]
[]
[null,null,null,null,"[B.1] altri casi di adeguamento - lettere c), d) ed e), par. 8.4.3, NTC 2018",null,null,400,null,null,{"$f":"IF(I27=0,0,PRODUCT(H27,I27))","v":0}]
[]
[null,null,null,null,"[B.2] miglioramento - par. 8.4.2, NTC 2018",null,null,400,null,null,0]
[]
[null,null,null,null,"[C.1] riparazione e interventi locali - par. 8.4.1, NTC 2018",null,null,360,null,null,0]
[]
[null,null,null,null,"[C.2] interventi locali speciali (2)",null,null,0,null,null,0]
[]
[]
[]
[null,null,"Ambienti ad uso commerciale, industriale e artigianale\nCat. D, Tab. 3.1.II, NTC 2018\n\nAree per immagazzinamento e uso commerciale e uso industriale\nCat. E, Tab. 3.1.II, NTC 2018\n\nAmbienti a prevalente uso agricolo e zootecnico (4)\n\nRimesse e aree per traffico di veicoli a servizio di ambienti ad uso commerciale, industriale, artigianale, agricolo e zootecnico\nCat. F-G, Tab. 3.1.II, NTC 2018",null,"[A.1] nuova costruzione",null,null,{"$f":"IF(G37=0,0,IF($G37<=500,360,IF(AND($G37>500,$G37<=3000),480,IF(AND($G37>3000,$G37<=6000),600,IF(AND($G37>6000,$G37<=10000),800,1000)))))","v":0},null,null,{"$f":"IF(I37=0,0,PRODUCT(H37,I37))","v":0}]
[]
[null,null,null,null,null,null,null,{"$f":"IF(G39=0,0,IF($G39<=500,360,IF(AND($G39>500,$G39<=3000),480,IF(AND($G39>3000,$G39<=6000),600,IF(AND($G39>6000,$G39<=10000),800,1000)))))","v":0},null,null,0]
[]
[null,null,null,null,null,null,null,0,null,null,0]
[]
[null,null,null,null,null,null,null,0,null,null,0]
[]
[null,null,null,null,null,null,null,0,null,null,0]
[]
[null,null,null,null,"[A.2] adeguamento per sopraelevazione - lett. a), par. 8.4.3, NTC 2018 (1)\n\n[A.2] adeguamento per ampliamento - lett. b), par. 8.4.3, NTC 2018 (1)",null,null,{"$f":"IF(G47=0,0,IF($G47<=500,360,IF(AND($G47>500,$G47<=3000),480,IF(AND($G47>3000,$G47<=6000),600,IF(AND($G47>6000,$G47<=10000),800,1000)))))","v":0},null,null,0]
[]
[null,null,null,null,null,null,null,0,null,null,0]
[]
[null,null,null,null,null,null,null,0,null,null,0]
[]
[null,null,null,null,null,null,null,0,null,null,0]
[]
[null,null,null,null,null,null,null,0,null,null,0]
[]
[null,null,null,null,"[B.1] altri casi di adeguamento - lettere c), d) ed e), par. 8.4.3, NTC 2018",null,null,400,null,null,{"$f":"IF(I57=0,0,PRODUCT(H57,I57))","v":0}]
[]
[null,null,null,null,"[B.2] miglioramento - par. 8.4.2, NTC 2018",null,null,400,null,null,0]
[]
[null,null,null,null,"[C.1] riparazione e interventi locali - par. 8.4.1, NTC 2018",null,null,360,null,null,0]
[]
[null,null,null,null,"[C.2] interventi locali speciali (2)",null,null,0,null,null,0]
[]
[]
[]
[null,null,"Muri di sostegno di altezza ≤ 5 m (3)\n\nTorri e tralicci di altezza ≤ 20 m (3)\n\nPonti monocampata di luce ≤ 10 m",null,"[D.1.a] nuova costruzione",null,null,480,null,null,{"$f":"IF(I67=0,0,PRODUCT(H67,I67))","v":0}]
[]
[null,null,null,null,"[D.1.a] adeguamento - par. 8.4.3, NTC 2018",null,null,480,null,null,{"$f":"IF(I69=0,0,PRODUCT(H69,I69))","v":0}]
[]
[null,null,null,null,"[D.1.a] miglioramento - par. 8.4.2, NTC 2018",null,null,480,null,null,0]
[]
[null,null,null,null,"[D.1.b] riparazione e interventi locali - par. 8.4.1, NTC 2018",null,null,360,null,null,0]
[]
[]
[]
[null,null,"Altre opere e costruzioni non valutabili a volume",null,"[D.2.a] nuova costruzione",null,null,{"$f":"2*H67","v":960},null,null,{"$f":"IF(I77=0,0,PRODUCT(H77,I77))","v":0}]
[]
[null,null,null,null,"[D.2.a] adeguamento - par. 8.4.3, NTC 2018",null,null,{"$f":"2*H69","v":960},null,null,0]
[]
[null,null,null,null,"[D.2.a] miglioramento - par. 8.4.2, NTC 2018",null,null,{"$f":"2*H71","v":960},null,null,0]
[]
[null,null,null,null,"[D.2.b] riparazione e interventi locali - par. 8.4.1, NTC 2018",null,null,{"$f":"2*H73","v":720},null,null,0]
[]
[]
[]
[null,null,"[E.1] Se trattasi di variante sostaziale ad autorizzazione sismica rilasciata, indicare qui a fianco il valore del rimborso forfettario versato per il progetto originario",null,null,null,null,0,null,null,{"$f":"IF(H87=0,0,PRODUCT(H87,1/2))","v":0}]
[]
[]
[]
[null,null,"[H.1] Trattasi di progetto presentato a seguito di violazione delle norme per le costruzioni in zona sismica?",null,null,null,null,null,"NO",null,{"$f":"IF(I91=\"SI\",2*SUM(K7:K83)+2*K87,SUM(K7:K83)+K87)","v":0}]
[]
[]
[null,null,"(1) Il volume totale da considerare è dato dal volume totale della costruzione di progetto ossia dal volume risultante della costruzione esistente a cui si aggiunge il volume dell'ampliamento e/o della sopraelevazione"]
[null,null,"(2) Collegamenti tra elementi strutturali prefabbricati, ancoraggi di tamponature in strutture prefabbricate e inserimenti di catene. Nel caso siano presenti entrambi gli interventi [C.1] e [C.2] è dovuto il rimborso corrispondente a [C.1]"]
[null,null,"(3) L'altezza è valutata dallo spiccato della fondazione"]
[null,null,"(4) Nelle destinazioni miste la prevalenza è valutata in termini di volume"]

{"sheet":"Dep Sism","index":2,"n_rows":98,"n_cols":17,"rows_kept":98,"cut":false,"hidden":false,"merged":[[97,2,97,10],[1,1,1,11],[6,2,32,2],[6,4,14,4],[7,6,7,10],[9,6,9,10],[11,6,11,10],[13,6,13,10],[15,4,15,10],[16,4,24,4],[17,6,17,10],[19,6,19,10],[21,6,21,10],[23,6,23,10],[25,4,25,10],[26,4,26,6],[27,4,27,10],[30,4,30,6],[31,4,31,10],[32,4,32,6],[28,4,28,6],[29,4,29,10],[36,2,62,2],[36,4,44,4],[46,4,54,4],[56,4,56,6],[58,4,58,6],[60,4,60,6],[62,4,62,6],[66,2,72,2],[66,4,66,6],[68,4,68,6],[70,4,70,6],[72,4,72,6],[95,2,95,10],[96,2,96,10],[90,2,90,7],[94,2,94,10],[76,2,82,2],[76,4,76,6],[78,4,78,6],[80,4,80,6],[82,4,82,6],[93,2,93,10],[86,2,86,6],[86,7,86,8]]}
[]
[null,"Allegato RF/Deposito Sismico - AUTOCALCOLO DEL RIMBORSO FORFETTARIO PER SPESE ISTRUTTORIE DI PRATICHE SISMICHE (d.G.R. 1934/2018)"]
[]
[null,null,"uso",null,"intervento",null,"volume [mc]","importo","U.S.",null,"totale",null,null,null,null,null,"SI"]
[null,null,null,null,null,null,null,null,null,null,null,null,null,null,null,null,"NO"]
[]
[null,null,"Ambienti ad uso residenziale\nCat. A, Tab. 3.1.II, NTC 2018\n\nUffici\nCat. B, Tab. 3.1.II, NTC 2018\n\nAmbienti suscettibili di affollamento\nCat. C, Tab. 3.1.II, NTC 2018\n\nRimesse e aree per traffico di veicoli a servizio di ambienti ad uso residenziale, uffici e ambienti suscettibili di affollamento\nCategorie F e G, Tab. 3.1.II, NTC 2018\n\nAmbienti con altri usi",null,"[A.1] nuova costruzione",null,null,{"$f":"IF($I$91=\"NO\",IF(G7=0,0,IF($G7<=500,120,IF(AND($G7>500,$G7<=1500),150,IF(AND($G7>1500,$G7<=3000),200,IF(AND($G7>3000,$G7<=5000),300,400))))),IF(G7=0,0,IF($G7<=500,360,IF(AND($G7>500,$G7<=1500),480,IF(AND($G7>1500,$G7<=3000),600,IF(AND($G7>3000,$G7<=5000),800,1000))))))","v":0},0,null,{"$f":"IF(I7=0,0,PRODUCT(H7,I7))","v":0}]
[]
[null,null,null,null,null,null,null,{"$f":"IF($I$91=\"NO\",IF(G9=0,0,IF($G9<=500,120,IF(AND($G9>500,$G9<=1500),150,IF(AND($G9>1500,$G9<=3000),200,IF(AND($G9>3000,$G9<=5000),300,400))))),IF(G9=0,0,IF($G9<=500,360,IF(AND($G9>500,$G9<=1500),480,IF(AND($G9>1500,$G9<=3000),600,IF(AND($G9>3000,$G9<=5000),800,1000))))))","v":0},null,null,0]
[]
[null,null,null,null,null,null,null,{"$f":"IF($I$91=\"NO\",IF(G11=0,0,IF($G11<=500,120,IF(AND($G11>500,$G11<=1500),150,IF(AND($G11>1500,$G11<=3000),200,IF(AND($G11>3000,$G11<=5000),300,400))))),IF(G11=0,0,IF($G11<=500,360,IF(AND($G11>500,$G11<=1500),480,IF(AND($G11>1500,$G11<=3000),600,IF(AND($G11>3000,$G11<=5000),800,1000))))))","v":0},null,null,0]
[]
[null,null,null,null,null,null,null,{"$f":"IF($I$91=\"NO\",IF(G13=0,0,IF($G13<=500,120,IF(AND($G13>500,$G13<=1500),150,IF(AND($G13>1500,$G13<=3000),200,IF(AND($G13>3000,$G13<=5000),300,400))))),IF(G13=0,0,IF($G13<=500,360,IF(AND($G13>500,$G13<=1500),480,IF(AND($G13>1500,$G13<=3000),600,IF(AND($G13>3000,$G13<=5000),800,1000))))))","v":0},null,null,0]
[]
[null,null,null,null,null,null,null,{"$f":"IF($I$91=\"NO\",IF(G15=0,0,IF($G15<=500,120,IF(AND($G15>500,$G15<=1500),150,IF(AND($G15>1500,$G15<=3000),200,IF(AND($G15>3000,$G15<=5000),300,400))))),IF(G15=0,0,IF($G15<=500,360,IF(AND($G15>500,$G15<=1500),480,IF(AND($G15>1500,$G15<=3000),600,IF(AND($G15>3000,$G15<=5000),800,1000))))))","v":0},null,null,0]
[]
[null,null,null,null,"[A.2] adeguamento per ampliamento - lett. b), par. 8.4.3, NTC 2018 (1)",null,null,{"$f":"IF($I$91=\"NO\",IF(G17=0,0,IF($G17<=500,120,IF(AND($G17>500,$G17<=1500),150,IF(AND($G17>1500,$G17<=3000),200,IF(AND($G17>3000,$G17<=5000),300,400))))),IF(G17=0,0,IF($G17<=500,360,IF(AND($G17>500,$G17<=1500),480,IF(AND($G17>1500,$G17<=3000),600,IF(AND($G17>3000,$G17<=5000),800,1000))))))","v":0},null,null,0]
[]
[null,null,null,null,null,null,null,{"$f":"IF($I$91=\"NO\",IF(G19=0,0,IF($G19<=500,120,IF(AND($G19>500,$G19<=1500),150,IF(AND($G19>1500,$G19<=3000),200,IF(AND($G19>3000,$G19<=5000),300,400))))),IF(G19=0,0,IF($G19<=500,360,IF(AND($G19>500,$G19<=1500),480,IF(AND($G19>1500,$G19<=3000),600,IF(AND($G19>3000,$G19<=5000),800,1000))))))","v":0},null,null,0]
[]
[null,null,null,null,null,null,null,{"$f":"IF($I$91=\"NO\",IF(G21=0,0,IF($G21<=500,120,IF(AND($G21>500,$G21<=1500),150,IF(AND($G21>1500,$G21<=3000),200,IF(AND($G21>3000,$G21<=5000),300,400))))),IF(G21=0,0,IF($G21<=500,360,IF(AND($G21>500,$G21<=1500),480,IF(AND($G21>1500,$G21<=3000),600,IF(AND($G21>3000,$G21<=5000),800,1000))))))","v":0},null,null,0]
[]
[null,null,null,null,null,null,null,{"$f":"IF($I$91=\"NO\",IF(G23=0,0,IF($G23<=500,120,IF(AND($G23>500,$G23<=1500),150,IF(AND($G23>1500,$G23<=3000),200,IF(AND($G23>3000,$G23<=5000),300,400))))),IF(G23=0,0,IF($G23<=500,360,IF(AND($G23>500,$G23<=1500),480,IF(AND($G23>1500,$G23<=3000),600,IF(AND($G23>3000,$G23<=5000),800,1000))))))","v":0},null,null,0]
[]
[null,null,null,null,null,null,null,{"$f":"IF($I$91=\"NO\",IF(G25=0,0,IF($G25<=500,120,IF(AND($G25>500,$G25<=1500),150,IF(AND($G25>1500,$G25<=3000),200,IF(AND($G25>3000,$G25<=5000),300,400))))),IF(G25=0,0,IF($G25<=500,360,IF(AND($G25>500,$G25<=1500),480,IF(AND($G25>1500,$G25<=3000),600,IF(AND($G25>3000,$G25<=5000),800,1000))))))","v":0},null,null,0]
[]
[null,null,null,null,"[B.1] altri casi di adeguamento - lettere c), d) ed e), par. 8.4.3, NTC 2018",null,null,{"$f":"IF($I$91=\"NO\",150,400)","v":150},null,null,{"$f":"IF(I27=0,0,PRODUCT(H27,I27))","v":0}]
[]
[null,null,null,null,"[B.2] miglioramento - par. 8.4.2, NTC 2018",null,null,{"$f":"IF($I$91=\"NO\",150,400)","v":150},null,null,0]
[]
[null,null,null,null,"[C.1] riparazione e interventi locali - par. 8.4.1, NTC 2018",null,null,{"$f":"IF($I$91=\"NO\",120,360)","v":120},null,null,0]
[]
[null,null,null,null,"[C.2] interventi locali speciali (2)",null,null,0,null,null,0]
[]
[]
[]
[null,null,"Ambienti ad uso commerciale, industriale e artigianale\nCat. D, Tab. 3.1.II, NTC 2018\n\nAree per immagazzinamento e uso commerciale e uso industriale\nCat. E, Tab. 3.1.II, NTC 2018\n\nAmbienti a prevalente uso agricolo e zootecnico (4)\n\nRimesse e aree per traffico di veicoli a servizio di ambienti ad uso commerciale, industriale, artigianale, agricolo e zootecnico\nCat. F-G, Tab. 3.1.II, NTC 2018",null,"[A.1] nuova costruzione",null,null,{"$f":"IF($I$91=\"NO\",IF(G37=0,0,IF($G37<=500,120,IF(AND($G37>500,$G37<=3000),150,IF(AND($G37>3000,$G37<=6000),200,IF(AND($G37>6000,$G37<=10000),300,400))))),IF(G37=0,0,IF($G37<=500,360,IF(AND($G37>500,$G37<=3000),480,IF(AND($G37>3000,$G37<=6000),600,IF(AND($G37>6000,$G37<=10000),800,1000))))))","v":0},null,null,{"$f":"IF(I37=0,0,PRODUCT(H37,I37))","v":0}]
[]
[null,null,null,null,null,null,null,{"$f":"IF($I$91=\"NO\",IF(G39=0,0,IF($G39<=500,120,IF(AND($G39>500,$G39<=3000),150,IF(AND($G39>3000,$G39<=6000),200,IF(AND($G39>6000,$G39<=10000),300,400))))),IF(G39=0,0,IF($G39<=500,360,IF(AND($G39>500,$G39<=3000),480,IF(AND($G39>3000,$G39<=6000),600,IF(AND($G39>6000,$G39<=10000),800,1000))))))","v":0},null,null,0]
[]
[null,null,null,null,null,null,null,{"$f":"IF($I$91=\"NO\",IF(G41=0,0,IF($G41<=500,120,IF(AND($G41>500,$G41<=3000),150,IF(AND($G41>3000,$G41<=6000),200,IF(AND($G41>6000,$G41<=10000),300,400))))),IF(G41=0,0,IF($G41<=500,360,IF(AND($G41>500,$G41<=3000),480,IF(AND($G41>3000,$G41<=6000),600,IF(AND($G41>6000,$G41<=10000),800,1000))))))","v":0},null,null,0]
[]
[null,null,null,null,null,null,null,{"$f":"IF($I$91=\"NO\",IF(G43=0,0,IF($G43<=500,120,IF(AND($G43>500,$G43<=3000),150,IF(AND($G43>3000,$G43<=6000),200,IF(AND($G43>6000,$G43<=10000),300,400))))),IF(G43=0,0,IF($G43<=500,360,IF(AND($G43>500,$G43<=3000),480,IF(AND($G43>3000,$G43<=6000),600,IF(AND($G43>6000,$G43<=10000),800,1000))))))","v":0},null,null,0]
[]
[null,null,null,null,null,null,null,{"$f":"IF($I$91=\"NO\",IF(G45=0,0,IF($G45<=500,120,IF(AND($G45>500,$G45<=3000),150,IF(AND($G45>3000,$G45<=6000),200,IF(AND($G45>6000,$G45<=10000),300,400))))),IF(G45=0,0,IF($G45<=500,360,IF(AND($G45>500,$G45<=3000),480,IF(AND($G45>3000,$G45<=6000),600,IF(AND($G45>6000,$G45<=10000),800,1000))))))","v":0},null,null,0]
[]
[null,null,null,null,"[A.2] adeguamento per ampliamento - lett. b), par. 8.4.3, NTC 2018 (1)",null,null,{"$f":"IF($I$91=\"NO\",IF(G47=0,0,IF($G47<=500,120,IF(AND($G47>500,$G47<=3000),150,IF(AND($G47>3000,$G47<=6000),200,IF(AND($G47>6000,$G47<=10000),300,400))))),IF(G47=0,0,IF($G47<=500,360,IF(AND($G47>500,$G47<=3000),480,IF(AND($G47>3000,$G47<=6000),600,IF(AND($G47>6000,$G47<=10000),800,1000))))))","v":0},null,null,0]
[]
[null,null,null,null,null,null,null,{"$f":"IF($I$91=\"NO\",IF(G49=0,0,IF($G49<=500,120,IF(AND($G49>500,$G49<=3000),150,IF(AND($G49>3000,$G49<=6000),200,IF(AND($G49>6000,$G49<=10000),300,400))))),IF(G49=0,0,IF($G49<=500,360,IF(AND($G49>500,$G49<=3000),480,IF(AND($G49>3000,$G49<=6000),600,IF(AND($G49>6000,$G49<=10000),800,1000))))))","v":0},null,null,0]
[]
[null,null,null,null,null,null,null,{"$f":"IF($I$91=\"NO\",IF(G51=0,0,IF($G51<=500,120,IF(AND($G51>500,$G51<=3000),150,IF(AND($G51>3000,$G51<=6000),200,IF(AND($G51>6000,$G51<=10000),300,400))))),IF(G51=0,0,IF($G51<=500,360,IF(AND($G51>500,$G51<=3000),480,IF(AND($G51>3000,$G51<=6000),600,IF(AND($G51>6000,$G51<=10000),800,1000))))))","v":0},null,null,0]
[]
[null,null,null,null,null,null,null,{"$f":"IF($I$91=\"NO\",IF(G53=0,0,IF($G53<=500,120,IF(AND($G53>500,$G53<=3000),150,IF(AND($G53>3000,$G53<=6000),200,IF(AND($G53>6000,$G53<=10000),300,400))))),IF(G53=0,0,IF($G53<=500,360,IF(AND($G53>500,$G53<=3000),480,IF(AND($G53>3000,$G53<=6000),600,IF(AND($G53>6000,$G53<=10000),800,1000))))))","v":0},null,null,0]
[]
[null,null,null,null,null,null,null,{"$f":"IF($I$91=\"NO\",IF(G55=0,0,IF($G55<=500,120,IF(AND($G55>500,$G55<=3000),150,IF(AND($G55>3000,$G55<=6000),200,IF(AND($G55>6000,$G55<=10000),300,400))))),IF(G55=0,0,IF($G55<=500,360,IF(AND($G55>500,$G55<=3000),480,IF(AND($G55>3000,$G55<=6000),600,IF(AND($G55>6000,$G55<=10000),800,1000))))))","v":0},null,null,0]
[]
[null,null,null,null,"[B.1] altri casi di adeguamento - lettere c), d) ed e), par. 8.4.3, NTC 2018",null,null,{"$f":"IF($I$91=\"NO\",150,400)","v":150},null,null,{"$f":"IF(I57=0,0,PRODUCT(H57,I57))","v":0}]
[]
[null,null,null,null,"[B.2] miglioramento - par. 8.4.2, NTC 2018",null,null,{"$f":"IF($I$91=\"NO\",150,400)","v":150},null,null,0]
[]
[null,null,null,null,"[C.1] riparazione e interventi locali - par. 8.4.1, NTC 2018",null,null,{"$f":"IF($I$91=\"NO\",120,360)","v":120},null,null,0]
[]
[null,null,null,null,"[C.2] interventi locali speciali (2)",null,null,0,null,null,0]
[]
[]
[]
[null,null,"Muri di sostegno di altezza ≤ 5 m (3)\n\nTorri e tralicci di altezza ≤ 20 m (3)\n\nPonti monocampata di luce ≤ 10 m",null,"[D.1.a] nuova costruzione",null,null,{"$f":"IF($I$91=\"NO\",150,480)","v":150},null,null,{"$f":"IF(I67=0,0,PRODUCT(H67,I67))","v":0}]
[]
[null,null,null,null,"[D.1.a] adeguamento - par. 8.4.3, NTC 2018",null,null,{"$f":"IF($I$91=\"NO\",150,480)","v":150},null,null,{"$f":"IF(I69=0,0,PRODUCT(H69,I69))","v":0}]
[]
[null,null,null,null,"[D.1.a] miglioramento - par. 8.4.2, NTC 2018",null,null,{"$f":"IF($I$91=\"NO\",150,480)","v":150},null,null,0]
[]
[null,null,null,null,"[D.1.b] riparazione e interventi locali - par. 8.4.1, NTC 2018",null,null,{"$f":"IF($I$91=\"NO\",120,360)","v":120},null,null,0]
[]
[]
[]
[null,null,"Altre opere e costruzioni non valutabili a volume",null,"[D.2.a] nuova costruzione",null,null,{"$f":"2*H67","v":300},null,null,{"$f":"IF(I77=0,0,PRODUCT(H77,I77))","v":0}]
[]
[null,null,null,null,"[D.2.a] adeguamento - par. 8.4.3, NTC 2018",null,null,{"$f":"2*H69","v":300},null,null,0]
[]
[null,null,null,null,"[D.2.a] miglioramento - par. 8.4.2, NTC 2018",null,null,{"$f":"2*H71","v":300},null,null,0]
[]
[null,null,null,null,"[D.2.b] riparazione e interventi locali - par. 8.4.1, NTC 2018",null,null,{"$f":"2*H73","v":240},null,null,0]
[]
[]
[]
[null,null,"[E.1] Se trattasi di variante sostaziale ad deposito sismico attestato, indicare qui a fianco il valore del rimborso forfettario versato per il progetto originario",null,null,null,null,0,null,null,{"$f":"IF(H87=0,0,PRODUCT(H87,1/2))","v":0}]
[]
[]
[]
[null,null,"[H.1] Trattasi di progetto sottoposto a controllo sistematico di conformità alle norme tecniche per le costruzioni? (5)",null,null,null,null,null,"NO",null,{"$f":"SUM(K7,K9,K11,K13,K15,K17,K19,K21,K23,K25,K27,K29,K31,K33,K37,K39,K41,K43,K45,K47,K49,K51,K53,K55,K57,K59,K61,K63,K67,K69,K71,K73,K77,K79,K81,K83,K87)","v":0}]
[]
[]
[null,null,"(1) Il volume totale da considerare è dato dal volume totale della costruzione di progetto ossia dal volume risultante della costruzione esistente a cui si aggiunge il volume dell'ampliamento e/o della sopraelevazione"]
[null,null,"(2) Collegamenti tra elementi strutturali prefabbricati, ancoraggi di tamponature in strutture prefabbricate e inserimenti di catene. Nel caso siano presenti entrambi gli interventi [C.1] e [C.2] è dovuto il rimborso corrispondente a [C.1]"]
[null,null,"(3) L'altezza è valutata dallo spiccato della fondazione"]
[null,null,"(4) Nelle destinazioni miste la prevalenza è valutata in termini di volume"]
[null,null,"(5) Il controllo è sistematico per i depositi contestuali a domande di PdC e a procedimenti abilitativi che richiedono l'indizione di conferenza di servizi, nonché per interventi su edifici e opere infrastrutturali rientranti negli elenchi della d.G.R. 1661/2009"]